bitfinex/quotes_BTCUSD_20241024
["timestamp","ask_amount","ask_price","bid_price","bid_amount"]
[1729792973502,0.332689,67664.0,67663.0,0.00627159]
[1729792976221,0.332689,67664.0,67663.0,0.00627157]
[1729792982342,0.332689,67664.0,67663.0,0.00627159]
[1729792982740,0.332689,67664.0,67663.0,0.00165]
[1729792982950,0.332689,67664.0,67663.0,0.00627161]
[1729792984325,0.332689,67664.0,67663.0,0.00627158]
[1729792984762,0.332689,67664.0,67663.0,0.00165]
[1729792985435,0.48400689,67664.0,67663.0,0.00165]
[1729792986481,0.6345107,67664.0,67663.0,0.00165]
[1729792987555,0.63945453,67664.0,67663.0,0.00165]
[1729792987757,0.250719,67650.0,67649.0,0.22112642]
[1729792987982,0.47943689,67650.0,67649.0,0.22112642]
[1729792988212,0.147834,67643.0,67642.0,0.22195142]
[1729792988460,0.225234,67643.0,67642.0,0.22195142]
[1729792988716,0.225234,67643.0,67642.0,0.000825]
[1729792990796,0.147834,67643.0,67642.0,0.000825]
[1729792996310,0.29564,67650.0,67642.0,0.000825]
[1729792996541,0.22112642,67649.0,67644.0,0.15131789]
[1729792996774,0.147832,67644.0,67642.0,0.0037814]
[1729792997004,0.147826,67647.0,67642.0,0.000825]
[1729792997230,0.378326,67653.0,67642.0,0.000825]
[1729792997231,0.22112642,67649.0,67642.0,0.000825]
[1729792997456,0.14783,67645.0,67642.0,0.000825]
[1729792997727,0.14783,67645.0,67642.0,0.148661]
[1729792998625,0.14783,67645.0,67642.0,0.000825]
[1729792999314,0.295652,67647.0,67642.0,0.000825]
[1729792999537,0.147834,67643.0,67642.0,0.000825]
[1729793000260,0.295659,67646.0,67642.0,0.000825]
[1729793000495,0.147833,67644.0,67642.0,0.000825]
[1729793000711,0.147834,67643.0,67642.0,0.000825]
[1729793001585,0.295652,67647.0,67642.0,0.000825]
[1729793001812,0.295647,67649.0,67642.0,0.148659]
[1729793002035,0.295647,67649.0,67643.0,0.147834]
[1729793002036,0.443479,67647.0,67643.0,0.147834]
[1729793002254,0.295647,67649.0,67642.0,0.000825]
[1729793002471,0.14783,67645.0,67642.0,0.15161743]
[1729793002706,0.14783,67645.0,67642.0,0.148661]
[1729793003374,0.29566,67646.0,67642.0,0.000825]
[1729793003597,0.14783,67645.0,67642.0,0.000825]
[1729793004094,0.14783,67645.0,67642.0,0.148661]
[1729793004739,0.14783,67645.0,67642.0,0.178261]
[1729793004961,0.14783,67645.0,67642.0,0.148661]
[1729793006462,0.29566,67646.0,67642.0,0.000825]
[1729793006679,0.14783,67645.0,67642.0,0.000825]
[1729793007375,0.14783,67645.0,67642.0,0.148661]
[1729793008257,0.22112642,67649.0,67642.0,0.000825]
[1729793008382,0.295659,67646.0,67642.0,0.000825]
[1729793008581,0.147832,67645.0,67642.0,0.000825]
[1729793010868,0.37833,67653.0,67643.0,0.15050381]
[1729793011077,0.22112642,67657.0,67652.0,0.15131789]
[1729793011287,0.22112642,67657.0,67650.0,0.005]
[1729793011288,0.295617,67656.0,67650.0,0.005]
[1729793011502,0.147808,67656.0,67652.0,0.147815]
[1729793011708,0.51673642,67657.0,67652.0,0.147815]
[1729793011709,0.147809,67655.0,67652.0,0.147815]
[1729793012137,0.188725,67663.0,67653.0,0.15550381]
[1729793012345,0.188725,67663.0,67659.0,0.15131789]
[1729793012346,0.147797,67661.0,67659.0,0.15131789]
[1729793012554,0.000825,67663.0,67654.0,0.29857688]
[1729793012555,0.147797,67660.0,67656.0,0.29912289]
[1729793012967,0.147801,67659.0,67656.0,0.15131789]
[1729793013174,0.147803,67658.0,67654.0,0.14781]
[1729793014230,0.295602,67659.0,67654.0,0.14781]
[1729793014461,0.295591,67661.0,67655.0,0.15243009]
[1729793014668,0.147802,67659.0,67655.0,0.147808]
[1729793014872,0.147802,67658.0,67656.0,0.00462206]
[1729793015079,0.147802,67658.0,67655.0,0.147808]
[1729793015288,0.147802,67658.0,67656.0,0.00462206]
[1729793015520,0.147802,67658.0,67655.0,0.147808]
[1729793016648,0.147804,67657.0,67656.0,0.00462204]
[1729793016881,0.147802,67659.0,67656.0,0.00462204]
[1729793017064,0.295588,67662.0,67656.0,0.147805]
[1729793017283,0.000825,67663.0,67657.0,0.00462189]
[1729793017501,0.000825,67663.0,67662.0,0.29911089]
[1729793017711,0.000825,67663.0,67662.0,0.30373278]
[1729793019669,0.000825,67663.0,67662.0,0.15593978]
[1729793020084,0.000825,67663.0,67662.0,0.30373278]
[1729793021860,0.000825,67663.0,67662.0,0.15241489]
[1729793022553,0.000825,67663.0,67662.0,0.00462189]
[1729793022953,0.000825,67663.0,67662.0,0.15241489]
[1729793023843,0.000825,67663.0,67662.0,0.00462189]
[1729793024064,0.000825,67663.0,67662.0,0.15241489]
[1729793024269,0.000825,67663.0,67662.0,0.46219218]
[1729793024475,0.000825,67663.0,67662.0,0.65403605]
[1729793024673,0.000825,67663.0,67662.0,0.75403605]
[1729793024814,0.000825,67663.0,67662.0,0.78443021]
[1729793025020,0.000825,67663.0,67662.0,0.77703605]
[1729793025219,0.000825,67663.0,67662.0,0.78443021]
[1729793025403,0.000825,67663.0,67662.0,0.63311232]
[1729793026243,0.000826,67676.0,67674.0,0.262267]
[1729793026386,0.22195142,67675.0,67674.0,0.56871005]
[1729793026790,0.000825,67675.0,67674.0,0.56871005]
[1729793028371,0.000825,67675.0,67674.0,0.45921005]
[1729793028572,0.000825,67675.0,67674.0,0.30789216]
[1729793028729,0.000825,67675.0,67674.0,0.30327081]
[1729793029638,0.000825,67675.0,67674.0,0.4545887]
[1729793032569,0.000825,67675.0,67674.0,0.4495887]
[1729793032686,0.000825,67675.0,67674.0,0.29827081]
[1729793033568,0.000825,67675.0,67674.0,0.30327081]
[1729793033775,0.000825,67675.0,67674.0,0.15050381]
[1729793036203,0.078825,67675.0,67674.0,0.15050381]
[1729793038123,0.22659,67675.0,67674.0,0.15050381]
[1729793038340,0.078825,67675.0,67674.0,0.15050381]
[1729793039271,0.226591,67675.0,67672.0,0.00462063]
[1729793039528,0.226591,67675.0,67673.0,0.15512444]
[1729793039710,0.226591,67675.0,67673.0,0.15050381]
[1729793039935,0.078825,67675.0,67673.0,0.15050381]
[1729793040145,0.078825,67675.0,67674.0,0.147767]
[1729793040346,0.226591,67675.0,67673.0,0.15550381]
[1729793040826,0.226591,67675.0,67669.0,0.305555]
[1729793040827,0.147771,67672.0,67669.0,0.152777]
[1729793041064,0.295535,67674.0,67670.0,0.15512449]
[1729793041302,0.147767,67674.0,67671.0,0.00462071]
[1729793041562,0.147767,67674.0,67671.0,0.15050381]
[1729793041770,0.147767,67674.0,67672.0,0.00462082]
[1729793041988,0.22659,67675.0,67671.0,0.15050381]
[1729793042262,0.22659,67675.0,67671.0,0.29827681]
[1729793042496,0.22659,67675.0,67672.0,0.00462083]
[1729793042706,0.22659,67675.0,67671.0,0.29827681]
[1729793042707,0.147769,67673.0,67671.0,0.15050381]
[1729793042929,0.147769,67673.0,67672.0,0.00462086]
[1729793043176,0.078825,67675.0,67673.0,0.147768]
[1729793043440,0.078825,67675.0,67673.0,0.15131789]
[1729793043635,0.078825,67675.0,67673.0,0.29908689]
[1729793044518,0.078825,67675.0,67674.0,0.00462082]
[1729793045031,0.078825,67675.0,67673.0,0.29908689]
[1729793045456,0.078825,67675.0,67674.0,0.00462082]
[1729793046846,0.000825,67675.0,67674.0,0.30289163]
[1729793047100,0.000825,67675.0,67674.0,0.3108466]
[1729793047355,0.000825,67675.0,67674.0,0.31528478]
[1729793047607,0.000825,67675.0,67674.0,0.61080267]
[1729793047865,0.000825,67675.0,67674.0,0.62236633]
[1729793048124,0.000825,67675.0,67674.0,0.69946633]
[1729793048366,0.22195242,67689.0,67688.0,0.15631789]
[1729793048637,0.22195242,67689.0,67688.0,0.4545577]
[1729793049109,0.000826,67689.0,67688.0,0.4545577]
[1729793050009,0.000826,67689.0,67688.0,0.46194858]
[1729793050285,0.000826,67689.0,67688.0,0.4545577]
[1729793050536,0.000826,67689.0,67688.0,0.46656798]
[1729793051805,0.000826,67689.0,67688.0,0.49956798]
[1729793052054,0.000826,67689.0,67688.0,0.75088587]
[1729793052315,0.000826,67689.0,67688.0,0.85918587]
[1729793052559,0.000826,67689.0,67688.0,0.70786798]
[1729793053768,0.22112642,67695.0,67694.0,0.33704089]
[1729793053991,0.22112642,67695.0,67694.0,0.4875447]
[1729793054211,0.160195,67707.0,67700.0,0.15271]
[1729793054431,0.160195,67707.0,67700.0,0.4574856]
[1729793054649,0.160195,67707.0,67700.0,0.4665392]
[1729793054919,0.0125,67707.0,67700.0,0.4665392]
[1729793055652,0.160196,67707.0,67700.0,0.4665392]
[1729793056332,0.0125,67707.0,67700.0,0.4665392]
[1729793056974,0.147698,67706.0,67700.0,0.4665392]
[1729793057633,0.160195,67707.0,67700.0,0.4665392]
[1729793058060,0.0125,67707.0,67700.0,0.4665392]
[1729793058280,0.160196,67707.0,67700.0,0.4665392]
[1729793058942,0.0125,67707.0,67700.0,0.30643997]
[1729793059821,0.0125,67707.0,67700.0,0.45414997]
[1729793060437,0.160196,67707.0,67700.0,0.45414997]
[1729793060658,0.0125,67707.0,67700.0,0.45414997]
[1729793061334,0.0125,67707.0,67700.0,0.4495317]
[1729793061568,0.0125,67707.0,67700.0,0.45415005]
[1729793061764,0.0125,67707.0,67700.0,0.60546794]
[1729793061971,0.0125,67707.0,67700.0,0.61546794]
[1729793062669,0.0125,67707.0,67700.0,0.46415005]
[1729793063852,0.0125,67707.0,67700.0,0.31283216]
[1729793064082,0.147698,67706.0,67700.0,0.31283216]
[1729793064801,0.295395,67706.0,67700.0,0.31283216]
[1729793065056,0.147699,67706.0,67700.0,0.31283216]
[1729793065272,0.0125,67707.0,67700.0,0.31283216]
[1729793065495,0.160196,67707.0,67700.0,0.31283216]
[1729793065756,0.147698,67706.0,67700.0,0.31283216]
[1729793066194,0.307893,67707.0,67700.0,0.31283216]
[1729793066423,0.147698,67706.0,67700.0,0.31283216]
[1729793066864,0.160195,67707.0,67700.0,0.31283216]
[1729793067280,0.0125,67707.0,67700.0,0.31283216]
[1729793068383,0.147697,67706.0,67700.0,0.31283216]
[1729793068857,0.160196,67707.0,67700.0,0.31283216]
[1729793069059,0.0125,67707.0,67700.0,0.31283216]
[1729793069684,0.083726,67701.0,67700.0,0.15512216]
[1729793070080,0.083726,67701.0,67700.0,0.30283216]
[1729793070814,0.083726,67701.0,67700.0,0.15512216]
[1729793071047,0.083726,67701.0,67700.0,0.30283216]
[1729793071859,0.083726,67701.0,67700.0,0.29821381]
[1729793072072,0.083726,67701.0,67700.0,0.15050381]
[1729793072273,0.231434,67701.0,67700.0,0.15512235]
[1729793072903,0.083726,67701.0,67700.0,0.15512235]
[1729793073126,0.231434,67701.0,67700.0,0.15512235]
[1729793075648,0.231434,67701.0,67700.0,0.15050381]
[1729793075898,0.231434,67701.0,67700.0,0.15512259]
[1729793076082,0.231434,67701.0,67700.0,0.15050381]
[1729793076300,0.231434,67701.0,67700.0,0.16251277]
[1729793076538,0.231434,67701.0,67700.0,0.15512265]
[1729793077205,0.083726,67701.0,67700.0,0.15512265]
[1729793077444,0.231434,67701.0,67700.0,0.15512265]
[1729793078356,0.231434,67701.0,67700.0,0.16251292]
[1729793079485,0.083726,67701.0,67696.0,0.147719]
[1729793079717,0.083726,67701.0,67696.0,0.15050381]
[1729793079943,0.14771,67700.0,67697.0,0.01200919]
[1729793080175,0.147711,67700.0,67698.0,0.01200919]
[1729793080400,0.147711,67700.0,67699.0,0.01200919]
[1729793080630,0.379145,67701.0,67699.0,0.01200919]
[1729793080631,0.083726,67701.0,67699.0,0.01200919]
[1729793080867,0.083726,67701.0,67700.0,0.15971919]
[1729793080868,0.000826,67701.0,67700.0,0.15971919]
[1729793081327,0.148534,67701.0,67700.0,0.01200919]
[1729793082708,0.000826,67701.0,67700.0,0.01200919]
[1729793082942,0.000826,67701.0,67700.0,0.311873]
[1729793083447,0.000826,67701.0,67700.0,0.31187235]
[1729793087061,0.000826,67701.0,67700.0,0.29986381]
[1729793087244,0.000826,67701.0,67700.0,0.31187207]
[1729793087439,0.000826,67701.0,67700.0,0.31187197]
[1729793090511,0.229734,67701.0,67700.0,0.01365816]
[1729793091092,0.229734,67701.0,67700.0,0.00626852]
[1729793091521,0.229734,67701.0,67700.0,0.01365883]
[1729793093001,0.082026,67701.0,67700.0,0.01365883]
[1729793093226,0.229734,67701.0,67700.0,0.00626852]
[1729793093477,0.229734,67701.0,67700.0,0.01365876]
[1729793093946,0.229734,67701.0,67700.0,0.00626852]
[1729793094914,0.229734,67701.0,67700.0,0.00165]
[1729793095148,0.229734,67701.0,67700.0,0.00626897]
[1729793095380,0.229734,67701.0,67700.0,0.00165]
[1729793095612,0.229734,67701.0,67700.0,0.00626896]
[1729793096480,0.082026,67701.0,67700.0,0.00626896]
[1729793096687,0.082026,67701.0,67700.0,0.0136593]
[1729793096688,0.000826,67701.0,67700.0,0.0136593]
[1729793096909,0.148534,67701.0,67700.0,0.0136593]
[1729793097739,0.000826,67701.0,67700.0,0.0136593]
[1729793097931,0.148534,67701.0,67700.0,0.0136593]
[1729793099759,0.148534,67701.0,67700.0,0.01365919]
[1729793100891,0.000826,67701.0,67700.0,0.01365919]
[1729793101096,0.148534,67701.0,67700.0,0.01365919]
[1729793104617,0.000826,67701.0,67700.0,0.31504306]
[1729793104850,0.000826,67701.0,67700.0,0.46275306]
[1729793105969,0.000826,67701.0,67700.0,0.50684229]
[1729793106403,0.000826,67701.0,67700.0,0.164163]
[1729793106892,0.148534,67701.0,67700.0,0.01365919]
[1729793107094,0.339834,67701.0,67700.0,0.01365919]
[1729793108576,0.231734,67701.0,67700.0,0.00165]
[1729793108789,0.231734,67701.0,67700.0,0.01365937]
[1729793108790,0.148534,67701.0,67700.0,0.01365937]
[1729793108992,0.148534,67701.0,67700.0,0.0136593]
[1729793111744,0.000826,67701.0,67700.0,0.0136593]
[1729793112410,0.000826,67701.0,67700.0,0.31187311]
[1729793113332,0.000826,67701.0,67700.0,0.16416311]
[1729793113543,0.000826,67701.0,67700.0,0.31187311]
[1729793114263,0.000826,67701.0,67700.0,0.54095948]
[1729793117339,0.000826,67701.0,67700.0,0.54105852]
[1729793118303,0.000826,67701.0,67700.0,0.39334852]
[1729793118488,0.000826,67701.0,67700.0,0.54105852]
[1729793118695,0.000826,67701.0,67700.0,0.31187311]
[1729793119389,0.000826,67701.0,67700.0,0.29986381]
[1729793119647,0.000826,67701.0,67700.0,0.47483743]
[1729793119899,0.000826,67701.0,67700.0,0.46282918]
[1729793120110,0.000826,67701.0,67700.0,0.47483741]
[1729793120311,0.000826,67701.0,67700.0,0.54105677]
[1729793120512,0.000826,67701.0,67700.0,0.47483741]
[1729793121198,0.000826,67701.0,67700.0,0.54105898]
[1729793122016,0.000826,67701.0,67700.0,0.39334898]
[1729793122240,0.000826,67701.0,67700.0,0.54105898]
[1729793123407,0.000826,67701.0,67700.0,0.39334898]
[1729793123628,0.000826,67701.0,67700.0,0.45999229]
[1729793126846,0.000826,67701.0,67700.0,0.44798406]
[1729793127071,0.000826,67701.0,67700.0,0.45996485]
[1729793129769,0.000826,67701.0,67700.0,0.41584553]
[1729793129967,0.000826,67701.0,67700.0,0.45996485]
[1729793131485,0.000826,67701.0,67700.0,0.93605685]
[1729793131687,0.000826,67701.0,67700.0,0.73001855]
[1729793131950,0.000826,67701.0,67700.0,0.73201855]
[1729793132150,0.000826,67701.0,67700.0,0.85180351]
[1729793132377,0.001674,67711.0,67710.0,0.54643404]
[1729793132559,0.001674,67711.0,67710.0,0.60497353]
[1729793133460,0.001674,67711.0,67710.0,0.77869453]
[1729793133680,0.001674,67711.0,67710.0,0.79070035]
[1729793135252,0.001674,67711.0,67710.0,0.85677612]
[1729793135452,0.001674,67711.0,67710.0,0.7528031]
[1729793135852,0.001674,67711.0,67710.0,0.85677612]
[1729793136247,0.001674,67711.0,67710.0,0.62797065]
[1729793136631,0.001674,67711.0,67710.0,0.31019763]
[1729793137150,0.00764031,67711.0,67710.0,0.3196411]
[1729793137384,0.001674,67711.0,67710.0,0.3196411]
[1729793138015,0.001674,67711.0,67710.0,0.75570973]
[1729793138215,0.001674,67711.0,67710.0,0.75566797]
[1729793138413,0.001674,67711.0,67710.0,0.65169495]
[1729793138784,0.001674,67711.0,67710.0,0.67371621]
[1729793139323,0.001674,67711.0,67710.0,0.58563118]
[1729793139940,0.001674,67711.0,67710.0,0.50513118]
[1729793140344,0.001674,67711.0,67710.0,0.72194132]
[1729793141171,0.001674,67711.0,67710.0,0.55945124]
[1729793141344,0.001674,67711.0,67710.0,0.49345408]
[1729793143166,0.001674,67711.0,67710.0,0.53743094]
[1729793145144,0.001674,67711.0,67710.0,0.92226147]
[1729793145369,0.001674,67711.0,67710.0,1.02025565]
[1729793145597,0.001674,67711.0,67710.0,1.19523598]
[1729793145820,0.001674,67711.0,67710.0,1.21714271]
[1729793146079,0.001674,67711.0,67710.0,0.95644739]
[1729793146547,0.001674,67711.0,67710.0,0.79415298]
[1729793146783,0.001674,67711.0,67710.0,1.21696294]
[1729793147009,0.001674,67711.0,67710.0,1.0661496]
[1729793148163,0.001674,67711.0,67710.0,1.06430875]
[1729793149090,0.001674,67711.0,67710.0,1.10529042]
[1729793149311,0.001674,67719.0,67714.0,0.002]
[1729793149530,0.001674,67719.0,67718.0,0.47229696]
[1729793149751,0.001674,67719.0,67718.0,0.62741772]
[1729793151159,0.001674,67719.0,67718.0,0.82241772]
[1729793151378,0.001674,67719.0,67718.0,0.82980485]
[1729793151563,0.001674,67719.0,67718.0,0.82241772]
[1729793152024,0.001674,67719.0,67718.0,0.67160474]
[1729793153348,0.001674,67719.0,67718.0,0.66698779]
[1729793153581,0.001674,67719.0,67718.0,0.67160465]
[1729793154025,0.001674,67719.0,67718.0,0.68142884]
[1729793154840,0.001674,67719.0,67718.0,0.46342884]
[1729793156216,0.001674,67719.0,67718.0,0.47081581]
[1729793156428,0.001674,67719.0,67718.0,0.46342884]
[1729793156649,0.001674,67719.0,67718.0,0.47081581]
[1729793156853,0.001674,67719.0,67718.0,0.46342884]
[1729793157041,0.001674,67719.0,67718.0,0.47081582]
[1729793159834,0.001674,67719.0,67718.0,0.6446288]
[1729793160057,0.001674,67719.0,67718.0,0.7546288]
[1729793160743,0.000825,67721.0,67720.0,0.282666]
[1729793160961,0.000825,67721.0,67720.0,0.48460719]
[1729793161189,0.000825,67721.0,67720.0,0.71675764]
[1729793161433,0.001674,67725.0,67724.0,0.43347098]
[1729793161649,0.001674,67731.0,67730.0,0.67337096]
[1729793161873,0.001674,67731.0,67730.0,0.72890616]
[1729793162094,0.001674,67731.0,67730.0,0.72690616]
[1729793162327,0.001674,67731.0,67730.0,0.6850648]
[1729793162549,0.001674,67731.0,67730.0,0.53425182]
[1729793162781,0.001674,67731.0,67730.0,0.73990724]
[1729793163009,0.001674,67731.0,67730.0,0.7857486]
[1729793163241,0.001674,67731.0,67730.0,0.78374559]
[1729793163463,0.001674,67731.0,67730.0,0.75190487]
[1729793164126,0.001674,67731.0,67730.0,0.74990487]
[1729793164563,0.001674,67731.0,67730.0,0.69292816]
[1729793164965,0.001674,67731.0,67730.0,0.54224945]
[1729793165238,0.001674,67731.0,67730.0,0.69292816]
[1729793165450,0.001674,67731.0,67730.0,0.70256696]
[1729793166135,0.001674,67731.0,67730.0,0.70456696]
[1729793166755,0.001674,67731.0,67730.0,0.85524567]
[1729793167016,0.001674,67731.0,67730.0,0.69256632]
[1729793167261,0.22112642,67745.0,67742.0,0.147618]
[1729793167475,0.22112642,67745.0,67742.0,0.48380132]
[1729793167702,0.00741462,67743.0,67742.0,0.48380132]
[1729793167914,0.001672,67743.0,67742.0,0.48380132]
[1729793168378,0.001672,67743.0,67742.0,0.58380132]
[1729793168608,0.001672,67743.0,67742.0,0.58580132]
[1729793169507,0.001672,67743.0,67742.0,0.59539615]
[1729793171081,0.001672,67743.0,67742.0,0.59539373]
[1729793172813,0.001672,67743.0,67742.0,0.59339373]
[1729793173027,0.001672,67743.0,67742.0,0.44271502]
[1729793173241,0.001672,67743.0,67742.0,0.59339373]
[1729793174745,0.001672,67743.0,67742.0,0.59339372]
[1729793174958,0.001672,67743.0,67742.0,0.59539372]
[1729793175878,0.000825,67753.0,67747.0,0.002]
[1729793176080,0.000825,67753.0,67751.0,0.32127771]
[1729793176323,0.000825,67753.0,67751.0,0.47639628]
[1729793176517,0.000825,67753.0,67752.0,0.147597]
[1729793176752,0.000825,67753.0,67752.0,0.30566717]
[1729793177598,0.000825,67753.0,67752.0,0.32866717]
[1729793177818,0.000825,67753.0,67752.0,0.32571557]
[1729793178049,0.000825,67753.0,67752.0,0.47639428]
[1729793178532,0.000825,67753.0,67752.0,0.48589899]
[1729793178758,0.000825,67753.0,67752.0,0.48589897]
[1729793181806,0.000825,67753.0,67752.0,0.58589897]
[1729793182444,0.000825,67753.0,67752.0,0.59328255]
[1729793187035,0.000825,67753.0,67752.0,0.58128423]
[1729793187227,0.000825,67753.0,67752.0,0.59328203]
[1729793188522,0.000825,67753.0,67752.0,0.6501268]
[1729793190045,0.000825,67753.0,67752.0,0.6601268]
[1729793190704,0.000825,67753.0,67752.0,0.648129]
[1729793190903,0.000825,67753.0,67752.0,0.7058795]
[1729793191312,0.000825,67753.0,67752.0,0.66212608]
[1729793191759,0.001672,67769.0,67768.0,0.180562]
[1729793191966,0.001672,67769.0,67768.0,0.65058637]
[1729793191967,0.00783434,67769.0,67768.0,0.65058637]
[1729793192177,0.00783434,67769.0,67768.0,0.54682463]
[1729793192178,0.001672,67769.0,67768.0,0.54682463]
[1729793193884,0.001672,67769.0,67768.0,0.53682463]
[1729793194091,0.001672,67769.0,67768.0,0.54682463]
[1729793194321,0.001672,67769.0,67768.0,0.59360189]
[1729793194506,0.001672,67769.0,67768.0,0.44306289]
[1729793194715,0.001672,67769.0,67768.0,0.41963306]
[1729793194716,0.077572,67769.0,67768.0,0.41963306]
[1729793194926,0.077572,67769.0,67768.0,0.57017206]
[1729793196421,0.077572,67769.0,67768.0,0.31963306]
[1729793198178,0.077572,67769.0,67768.0,0.31963163]
[1729793198634,0.077572,67769.0,67768.0,0.30763598]
[1729793198832,0.077572,67769.0,67768.0,0.31963163]
[1729793199230,0.077572,67769.0,67768.0,0.31006146]
[1729793199437,0.077572,67769.0,67768.0,0.30267952]
[1729793199658,0.077572,67769.0,67768.0,0.15511752]
[1729793199876,0.077572,67769.0,67768.0,0.30267952]
[1729793200754,0.077572,67769.0,67768.0,0.45321852]
[1729793201662,0.077572,67769.0,67768.0,0.46060046]
[1729793202598,0.001672,67769.0,67768.0,0.56060046]
[1729793207812,0.001672,67769.0,67768.0,0.62743771]
[1729793208085,0.001672,67769.0,67768.0,1.10642197]
[1729793208330,0.001672,67769.0,67768.0,1.07772884]
[1729793208570,0.001672,67779.0,67775.0,0.023]
[1729793208799,0.001672,67779.0,67778.0,0.51543537]
[1729793209049,0.001672,67779.0,67778.0,0.63411746]
[1729793209330,0.081972,67787.0,67786.0,0.147523]
[1729793209564,0.001672,67787.0,67786.0,0.48355881]
[1729793209820,0.001672,67787.0,67786.0,0.48355774]
[1729793212750,0.001672,67787.0,67786.0,0.49305476]
[1729793214813,0.001672,67787.0,67786.0,0.31951576]
[1729793215254,0.001672,67787.0,67786.0,0.31213611]
[1729793215453,0.001672,67787.0,67786.0,0.46267511]
[1729793216492,0.001672,67787.0,67786.0,0.46267508]
[1729793219604,0.001672,67787.0,67786.0,0.31213608]
[1729793220481,0.001672,67787.0,67786.0,0.31951568]
[1729793220893,0.078472,67787.0,67786.0,0.16249566]
[1729793221159,0.078472,67787.0,67786.0,0.15511606]
[1729793221360,0.147523,67786.0,67785.0,0.03]
[1729793221579,0.0769,67780.0,67775.0,0.15215824]
[1729793221812,0.0769,67780.0,67774.0,0.00941324]
[1729793221813,0.0769,67780.0,67779.0,0.22112642]
[1729793222029,0.0769,67780.0,67779.0,0.15511705]
[1729793222273,0.0769,67780.0,67779.0,0.00461324]
[1729793222498,0.318036,67780.0,67779.0,0.00461324]
[1729793222721,0.318036,67780.0,67771.0,0.30249057]
[1729793222722,0.0769,67777.0,67776.0,0.00461324]
[1729793222949,0.0769,67777.0,67773.0,0.00461353]
[1729793223194,0.0769,67777.0,67774.0,0.15050381]
[1729793223408,0.0769,67777.0,67775.0,0.00461353]
[1729793223630,0.0769,67777.0,67775.0,0.29804981]
[1729793223832,0.0769,67777.0,67775.0,0.15050381]
[1729793225146,0.0769,67777.0,67771.0,0.00461361]
[1729793225147,0.29509,67776.0,67771.0,0.00461361]
[1729793225359,0.147545,67776.0,67772.0,0.15216661]
[1729793225581,0.147545,67776.0,67772.0,0.147553]
[1729793226514,0.22938683,67777.0,67772.0,0.147551]
[1729793226716,0.147544,67776.0,67772.0,0.147552]
[1729793227098,0.147544,67776.0,67771.0,0.295111]
[1729793227530,0.0069321,67775.0,67772.0,0.147553]
[1729793228190,0.0069321,67775.0,67771.0,0.295111]
[1729793228332,0.08184383,67777.0,67771.0,0.44565]
[1729793228532,0.08184383,67777.0,67776.0,0.147544]
[1729793228915,0.08184383,67777.0,67774.0,0.147549]
[1729793229159,0.08184383,67777.0,67773.0,0.295102]
[1729793229393,0.08184383,67777.0,67776.0,0.147544]
[1729793229612,0.08184383,67777.0,67775.0,0.147545]
[1729793229831,0.08184383,67777.0,67772.0,0.295107]
[1729793230076,0.08184383,67777.0,67776.0,0.147544]
[1729793231901,0.08184383,67777.0,67775.0,0.147546]
[1729793232348,0.08184383,67777.0,67774.0,0.295098]
[1729793232612,0.08184383,67777.0,67776.0,0.147544]
[1729793235162,0.08184383,67777.0,67775.0,0.147546]
[1729793235397,0.08184383,67777.0,67776.0,0.147544]
[1729793236843,0.22938683,67777.0,67773.0,0.147551]
[1729793237089,0.08877523,67777.0,67775.0,0.147546]
[1729793237548,0.08877523,67777.0,67772.0,0.001648]
[1729793237784,0.00494383,67775.0,67773.0,0.14755]
[1729793238027,0.083,67774.0,67773.0,0.36867642]
[1729793238304,0.08992893,67774.0,67773.0,0.14755]
[1729793239684,0.08992893,67774.0,67772.0,0.001648]
[1729793240606,0.083,67774.0,67772.0,0.001648]
[1729793240848,0.00692893,67773.0,67772.0,0.149201]
[1729793245499,0.00692893,67773.0,67772.0,0.15381479]
[1729793245943,0.00692893,67773.0,67772.0,0.149201]
[1729793246172,0.00692893,67773.0,67772.0,0.15381479]
[1729793247928,0.00692893,67773.0,67772.0,0.00626179]
[1729793248149,0.00692893,67773.0,67772.0,0.15381479]
[1729793248363,0.083,67774.0,67772.0,0.15381479]
[1729793248576,0.00694427,67773.0,67772.0,0.149201]
[1729793248792,0.00694427,67773.0,67772.0,0.15381479]
[1729793249466,0.00694427,67773.0,67772.0,0.01364386]
[1729793249689,0.00694427,67773.0,67772.0,0.00626179]
[1729793250113,0.00694427,67773.0,67772.0,0.15381479]
[1729793250324,0.00694427,67773.0,67772.0,0.00626179]
[1729793253761,0.00694427,67773.0,67772.0,0.001648]
[1729793253984,0.00694427,67773.0,67772.0,0.00626202]
[1729793254237,0.00694427,67773.0,67772.0,0.01364431]
[1729793254711,0.33189527,67773.0,67772.0,0.00626202]
[1729793254936,0.18434427,67773.0,67772.0,0.00626202]
[1729793255410,0.18434427,67773.0,67772.0,0.00626209]
[1729793255650,0.08614427,67773.0,67772.0,0.00626209]
[1729793258872,0.23369527,67773.0,67772.0,0.00626209]
[1729793259106,0.23369527,67773.0,67772.0,0.00626211]
[1729793261423,0.08614427,67773.0,67772.0,0.00626211]
[1729793262109,0.23369527,67773.0,67772.0,0.00626211]
[1729793262839,0.23369527,67773.0,67772.0,0.001648]
[1729793263078,0.23369527,67773.0,67772.0,0.00626194]
[1729793264037,0.23369527,67773.0,67763.0,0.36109188]
[1729793264038,0.1727,67766.0,67757.0,0.001648]
[1729793264275,0.26128335,67758.0,67757.0,0.001648]
[1729793264489,0.0823,67758.0,67757.0,0.001648]
[1729793264718,0.08850308,67758.0,67757.0,0.10540352]
[1729793265160,0.08850308,67758.0,67757.0,0.001648]
[1729793265379,0.0823,67758.0,67757.0,0.001648]
[1729793265847,0.08851037,67758.0,67757.0,0.001648]
[1729793270303,0.00621037,67758.0,67757.0,0.001648]
[1729793270932,0.00619423,67758.0,67757.0,0.001648]
[1729793271144,0.14758,67760.0,67757.0,0.001648]
[1729793271363,0.00619423,67758.0,67757.0,0.001648]
[1729793271577,0.14758,67760.0,67757.0,0.001648]
[1729793271792,0.00620253,67758.0,67757.0,0.001648]
[1729793272000,0.295155,67761.0,67757.0,0.001648]
[1729793272211,0.00620253,67758.0,67757.0,0.001648]
[1729793272427,0.14758,67760.0,67757.0,0.001648]
[1729793272845,0.00620042,67759.0,67757.0,0.001648]